fUSD/lending_fUSD_20240409
["ID","MTS","AMOUNT","RATE_DAILY","PERIOD"]
[321931772,1712641838304,-500.0,0.00020821,2]
[321931774,1712641838314,-500.0,0.00020821,2]
[321931776,1712641838323,-500.0,0.00020821,2]
[321931778,1712641838333,-500.0,0.00020821,2]
[321931780,1712641838345,-156.59155587,0.00020821,2]
[321931782,1712641838355,-500.0,0.00020821,2]
[321931783,1712641838364,-500.0,0.00020821,2]
[321931784,1712641838374,-185.15042036,0.00020821,2]
[321931785,1712641838384,-463.10495583,0.00020821,2]
[321931786,1712641838394,-500.0,0.00020821,2]
[321931787,1712641838404,-500.0,0.00020821,2]
[321931788,1712641838417,-501.94173886,0.00020821,2]
[321931789,1712641838426,-500.0,0.00020821,2]
[321931790,1712641838436,-500.0,0.00020821,2]
[321931791,1712641838446,-512.75244615,0.00020821,2]
[321931792,1712641838456,-500.0,0.00020821,2]
[321931793,1712641838465,-500.0,0.00020821,2]
[321931794,1712641838478,-500.0,0.00020821,2]
[321931795,1712641838487,-500.0,0.00020821,2]
[321931796,1712641838498,-542.91,0.00020821,2]
[321931797,1712641838508,-500.0,0.00020821,2]
[321931798,1712641838518,-500.0,0.00020821,2]
[321931799,1712641838528,-654.32,0.00020821,2]
[321931800,1712641838538,-500.0,0.00020821,2]
[321931801,1712641838549,-578.44037235,0.00020821,2]
[321931802,1712641838559,-316.55738173,0.00020821,2]
[321931803,1712641838568,-500.0,0.00020821,2]
[321931804,1712641838578,-500.0,0.00020821,2]
[321931805,1712641838593,-500.0,0.00020821,2]
[321931806,1712641838604,-500.0,0.00020821,2]
[321931807,1712641838615,-510.54665968,0.00020821,2]
[321931808,1712641838624,-501.96579492,0.00020821,2]
[321931809,1712641838635,-500.0,0.00020821,2]
[321931810,1712641838644,-500.0,0.00020821,2]
[321931811,1712641838654,-626.76,0.00020821,2]
[321931812,1712641838664,-500.0,0.00020821,2]
[321931813,1712641838673,-510.58847976,0.00020821,2]
[321931814,1712641838683,-500.0,0.00020821,2]
[321931815,1712641838693,-193.72847933,0.00020821,2]
[321931816,1712641838702,-500.0,0.00020821,2]
[321931817,1712641838712,-500.0,0.00020821,2]
[321931818,1712641838722,-678.02,0.00020821,2]
[321931819,1712641838731,-500.0,0.00020821,2]
[321931820,1712641838741,-500.0,0.00020821,2]
[321931821,1712641838751,-801.88,0.00020821,2]
[321931822,1712641838762,-500.0,0.00020821,2]
[321931823,1712641838773,-500.0,0.00020821,2]
[321931825,1712641838782,-500.0,0.00020821,2]
[321931827,1712641838792,-500.0,0.00020821,2]
[321931828,1712641838801,-500.0,0.00020821,2]
[321931830,1712641838811,-191.47036957,0.00020821,2]
[321931832,1712641838820,-517.03807486,0.00020821,2]
[321931834,1712641838830,-500.0,0.00020821,2]
[321931836,1712641838840,-512.85357473,0.00020821,2]
[321931838,1712641838850,-724.64,0.00020821,2]
[321931841,1712641838860,-500.0,0.00020821,2]
[321931843,1712641838873,-503.16140436,0.00020821,2]
[321931845,1712641838883,-500.0,0.00020821,2]
[321931847,1712641838893,-500.0,0.00020821,2]
[321931849,1712641838902,-498.12381788,0.00020821,2]
[321931851,1712641838911,-500.0,0.00020821,2]
[321931853,1712641838922,-500.0,0.00020821,2]
[321931855,1712641838932,-509.31287673,0.00020821,2]
[321931857,1712641838941,-500.0,0.00020821,2]
[321931859,1712641838951,-500.0,0.00020821,2]
[321931861,1712641838960,-500.0,0.00020821,2]
[321931863,1712641838970,-500.0,0.00020821,2]
[321931866,1712641838980,-500.0,0.00020821,2]
[321931867,1712641838989,-500.0,0.00020821,2]
[321931869,1712641838999,-500.0,0.00020821,2]
[321931871,1712641839009,-500.0,0.00020821,2]
[321931873,1712641839018,-509.80091351,0.00020821,2]
[321931875,1712641839028,-500.0,0.00020821,2]
[321931878,1712641839038,-500.0,0.00020821,2]
[321931880,1712641839049,-500.0,0.00020821,2]
[321931882,1712641839058,-500.0,0.00020821,2]
[321931884,1712641839069,-500.0,0.00020821,2]
[321931886,1712641839079,-500.0,0.00020821,2]
[321931888,1712641839090,-500.0,0.00020821,2]
[321931890,1712641839099,-500.0,0.00020821,2]
[321931892,1712641839109,-892.43,0.00020821,2]
[321931894,1712641839118,-500.0,0.00020821,2]
[321931896,1712641839128,-500.0,0.00020821,2]
[321931898,1712641839139,-500.0,0.00020821,2]
[321931900,1712641839149,-500.0,0.00020821,2]
[321931902,1712641839159,-316.98375612,0.00020821,2]
[321931904,1712641839169,-500.0,0.00020821,2]
[321931906,1712641839179,-500.0,0.00020821,2]
[321931908,1712641839189,-500.0,0.00020821,2]
[321931911,1712641839199,-515.17,0.00020821,2]
[321931913,1712641839209,-500.0,0.00020821,2]
[321931915,1712641839220,-500.0,0.00020821,2]
[321931916,1712641839230,-500.0,0.00020821,2]
[321931918,1712641839240,-500.0,0.00020821,2]
[321931920,1712641839250,-500.0,0.00020821,2]
[321931923,1712641839260,-500.0,0.00020821,2]
[321931925,1712641839270,-539.77,0.00020821,2]
[321931927,1712641839279,-500.0,0.00020821,2]
[321931928,1712641839289,-500.0,0.00020821,2]
[321931930,1712641839298,-500.0,0.00020821,2]
[321931932,1712641839307,-500.0,0.00020821,2]
[321931934,1712641839317,-500.0,0.00020821,2]
[321931937,1712641839329,-219.13216335,0.00020821,2]
[321931939,1712641839338,-500.0,0.00020821,2]
[321931941,1712641839348,-547.77448486,0.00020821,2]
[321931943,1712641839357,-500.0,0.00020821,2]
[321931945,1712641839366,-500.0,0.00020821,2]
[321931947,1712641839375,-580.89,0.00020821,2]
[321931949,1712641839385,-500.0,0.00020821,2]
[321931951,1712641839395,-500.0,0.00020821,2]
[321931953,1712641839404,-500.0,0.00020821,2]
[321931955,1712641839413,-500.0,0.00020821,2]
[321931956,1712641839422,-500.0,0.00020821,2]
[321931957,1712641839432,-500.0,0.00020821,2]
[321931958,1712641839441,-500.0,0.00020821,2]
[321931959,1712641839451,-192.16185736,0.00020821,2]
[321931960,1712641839460,-500.0,0.00020821,2]
[321931961,1712641839470,-672.38,0.00020821,2]
[321931963,1712641839483,-564.06804838,0.00020821,2]
[321931965,1712641839493,-500.0,0.00020821,2]
[321931967,1712641839503,-500.0,0.00020821,2]
[321931969,1712641839513,-500.0,0.00020821,2]
[321931971,1712641839523,-500.0,0.00020821,2]
[321931973,1712641839533,-500.0,0.00020821,2]
[321931975,1712641839543,-1005.38,0.00020821,2]
[321931977,1712641839552,-1359.26,0.00020821,2]
[321931979,1712641839563,-960.57,0.00020821,2]
[321931981,1712641839574,-889.56,0.00020821,2]
[321931983,1712641839584,-562.03,0.00020821,2]
[321931985,1712641839595,-500.0,0.00020821,2]
[321931987,1712641839604,-376.39683976,0.00020821,2]
[321931989,1712641839614,-603.4,0.00020821,2]
[321931991,1712641839624,-500.0,0.00020821,2]
[321931993,1712641839633,-500.0,0.00020821,2]
[321931996,1712641839642,-500.0,0.00020821,2]
[321931998,1712641839652,-500.0,0.00020821,2]
[321932000,1712641839661,-1450.26,0.00020821,2]
[321932002,1712641839670,-500.0,0.00020821,2]
[321932004,1712641839679,-750.64,0.00020821,2]
[321932006,1712641839688,-500.0,0.00020821,2]
[321932008,1712641839697,-500.57226938,0.00020821,2]
[321932010,1712641839707,-500.0,0.00020821,2]
[321932012,1712641839717,-500.0,0.00020821,2]
[321932060,1712641840139,-500.0,0.00020821,2]
[321932062,1712641840149,-500.0,0.00020821,2]
[321932064,1712641840159,-500.0,0.00020821,2]
[321932066,1712641840168,-512.88920514,0.00020821,2]
[321932068,1712641840178,-500.0,0.00020821,2]
[321932070,1712641840188,-500.0,0.00020821,2]
[321932072,1712641840198,-556.10047584,0.00020821,2]
[321932074,1712641840207,-679.17,0.00020821,2]
[321932076,1712641840216,-500.0,0.00020821,2]
[321932078,1712641840226,-500.0,0.00020821,2]
[321932080,1712641840236,-500.0,0.00020821,2]
[321932082,1712641840245,-526.23020561,0.00020821,2]
[321932084,1712641840254,-500.0,0.00020821,2]
[321932086,1712641840264,-500.0,0.00020821,2]
[321932088,1712641840273,-500.0,0.00020821,2]
[321932090,1712641840283,-500.0,0.00020821,2]
[321932092,1712641840292,-500.0,0.00020821,2]
[321932094,1712641840302,-505.78666866,0.00020821,2]
[321932096,1712641840311,-500.0,0.00020821,2]
[321932098,1712641840320,-1110.03,0.00020821,2]
[321932100,1712641840329,-1318.14,0.00020821,2]
[321932102,1712641840339,-500.0,0.00020821,2]
[321932104,1712641840348,-500.0,0.00020821,2]
[321932106,1712641840357,-741.5,0.00020821,2]
[321932108,1712641840367,-500.0,0.00020821,2]
[321932110,1712641840376,-500.0,0.00020821,2]
[321932112,1712641840385,-500.0,0.00020821,2]
[321932114,1712641840394,-500.0,0.00020821,2]
[321932116,1712641840403,-1490.5,0.00020821,2]
[321932118,1712641840413,-500.0,0.00020821,2]
[321932120,1712641840422,-500.0,0.00020821,2]
[321932122,1712641840431,-500.0,0.00020821,2]
[321932124,1712641840440,-1081.98,0.00020821,2]
[321932126,1712641840450,-500.0,0.00020821,2]
[321932128,1712641840459,-500.0,0.00020821,2]
[321932130,1712641840468,-500.0,0.00020821,2]
[321932132,1712641840479,-500.0,0.00020821,2]
[321932134,1712641840489,-551.41,0.00020821,2]
[321932136,1712641840497,-500.0,0.00020821,2]
[321932137,1712641840506,-500.0,0.00020821,2]
[321932138,1712641840517,-313.64290123,0.00020821,2]
[321932139,1712641840526,-500.0,0.00020821,2]
[321932140,1712641840536,-500.0,0.00020821,2]
[321932141,1712641840545,-500.0,0.00020821,2]
[321932142,1712641840555,-500.0,0.00020821,2]
[321932144,1712641840564,-500.0,0.00020821,2]
[321932146,1712641840573,-500.0,0.00020821,2]
[321932148,1712641840582,-500.0,0.00020821,2]
[321932150,1712641840592,-500.0,0.00020821,2]
[321932152,1712641840601,-500.0,0.00020821,2]
[321932154,1712641840609,-700.78,0.00020821,2]
[321932156,1712641840618,-500.0,0.00020821,2]
[321932158,1712641840628,-500.0,0.00020821,2]
[321932159,1712641840638,-500.0,0.00020821,2]
[321932162,1712641840649,-500.0,0.00020821,2]
[321932163,1712641840658,-500.0,0.00020821,2]
[321932165,1712641840668,-500.0,0.00020821,2]
[321932167,1712641840677,-500.0,0.00020821,2]
[321932169,1712641840686,-500.0,0.00020821,2]
[321932171,1712641840695,-500.0,0.00020821,2]
[321932174,1712641840705,-500.0,0.00020821,2]
[321932175,1712641840715,-500.0,0.00020821,2]
[321932177,1712641840725,-500.0,0.00020821,2]
[321932179,1712641840734,-500.0,0.00020821,2]
[321932181,1712641840743,-500.0,0.00020821,2]
[321932184,1712641840753,-500.0,0.00020821,2]
[321932185,1712641840763,-500.0,0.00020821,2]
[321932187,1712641840772,-500.0,0.00020821,2]
[321932190,1712641840782,-500.0,0.00020821,2]
[321932191,1712641840792,-500.0,0.00020821,2]
[321932194,1712641840802,-500.0,0.00020821,2]
[321932196,1712641840811,-500.0,0.00020821,2]
[321932197,1712641840821,-500.0,0.00020821,2]
[321932199,1712641840830,-500.0,0.00020821,2]
[321932201,1712641840840,-500.0,0.00020821,2]
[321932203,1712641840849,-500.0,0.00020821,2]
[321932205,1712641840858,-500.0,0.00020821,2]
[321932207,1712641840867,-500.0,0.00020821,2]
[321932209,1712641840876,-1231.09,0.00020821,2]
[321932212,1712641840886,-527.3456872,0.00020821,2]
[321932214,1712641840895,-500.0,0.00020821,2]
[321932215,1712641840904,-500.0,0.00020821,2]
[321932218,1712641840914,-1269.19,0.00020821,2]
[321932220,1712641840923,-293.33760653,0.00020821,2]
[321932222,1712641840932,-621.17,0.00020821,2]
[321932224,1712641840941,-500.0,0.00020821,2]
[321932226,1712641840950,-500.0,0.00020821,2]
[321932228,1712641840959,-500.0,0.00020821,2]
[321932230,1712641840969,-500.0,0.00020821,2]
[321932232,1712641840978,-500.0,0.00020821,2]
[321932234,1712641840987,-500.0,0.00020821,2]
[321932236,1712641840998,-500.0,0.00020821,2]
[321932238,1712641841008,-500.0,0.00020821,2]
[321932239,1712641841018,-810.66,0.00020821,2]
[321932241,1712641841027,-520.27,0.00020821,2]
[321932244,1712641841036,-500.0,0.00020821,2]
[321932246,1712641841046,-500.0,0.00020821,2]
[321932248,1712641841055,-500.0,0.00020821,2]
[321932249,1712641841064,-510.7124734,0.00020821,2]
[321932251,1712641841073,-500.0,0.00020821,2]
[321932253,1712641841083,-500.0,0.00020821,2]
[321932255,1712641841094,-500.0,0.00020821,2]
[321932257,1712641841103,-502.8,0.00020821,2]
[321932259,1712641841113,-552.39,0.00020821,2]
[321932261,1712641841124,-889.73,0.00020821,2]
[321932263,1712641841133,-204.0905558,0.00020821,2]
[321932265,1712641841143,-500.0,0.00020821,2]
[321932267,1712641841151,-500.0,0.00020821,2]
[321932269,1712641841161,-566.15,0.00020821,2]
[321932271,1712641841170,-500.0,0.00020821,2]
[321932273,1712641841179,-500.0,0.00020821,2]
[321932275,1712641841189,-2104.91,0.00020821,2]
[321932277,1712641841197,-684.47,0.00020821,2]
[321932279,1712641841207,-500.0,0.00020821,2]
[321932281,1712641841215,-750.51,0.00020821,2]
[321932284,1712641841227,-500.0,0.00020821,2]
[321932286,1712641841236,-500.0,0.00020821,2]
[321932288,1712641841246,-2211.66,0.00020821,2]
[321932290,1712641841255,-500.0,0.00020821,2]
[321932292,1712641841264,-500.0,0.00020821,2]
[321932294,1712641841275,-500.0,0.00020821,2]
[321932296,1712641841284,-500.0,0.00020821,2]
[321932298,1712641841294,-500.0,0.00020821,2]
[321932300,1712641841303,-1329.48,0.00020821,2]
[321932302,1712641841314,-500.0,0.00020821,2]
[321932304,1712641841324,-500.0,0.00020821,2]
[321932306,1712641841333,-1837.11,0.00020821,2]
[321932308,1712641841343,-500.0,0.00020821,2]
[321932310,1712641841352,-567.15838533,0.00020821,2]
[321932312,1712641841361,-500.0,0.00020821,2]
[321932313,1712641841370,-500.0,0.00020821,2]
[321932315,1712641841379,-500.0,0.00020821,2]
[321932317,1712641841388,-500.0,0.00020821,2]
[321932319,1712641841397,-500.0,0.00020821,2]
[321932321,1712641841406,-500.0,0.00020821,2]
[321932324,1712641841415,-500.0,0.00020821,2]
[321932326,1712641841425,-500.0,0.00020821,2]
[321932328,1712641841434,-500.0,0.00020821,2]
[321932330,1712641841443,-1283.4,0.00020821,2]
[321932331,1712641841452,-500.0,0.00020821,2]
[321932333,1712641841462,-500.0,0.00020821,2]
[321932335,1712641841474,-583.52715343,0.00020821,2]
[321932338,1712641841486,-500.0,0.00020821,2]
[321932340,1712641841496,-1954.69,0.00020821,2]
[321932341,1712641841507,-500.0,0.00020821,2]
[321932344,1712641841517,-576.25,0.00020821,2]
[321932345,1712641841527,-500.0,0.00020821,2]
[321932347,1712641841536,-500.0,0.00020821,2]
[321932349,1712641841546,-500.0,0.00020821,2]
[321932350,1712641841554,-500.0,0.00020821,2]
[321932351,1712641841565,-500.0,0.00020821,2]
[321932352,1712641841575,-502.77336872,0.00020821,2]
[321932353,1712641841583,-500.0,0.00020821,2]
[321932354,1712641841594,-510.05442422,0.00020821,2]
[321932356,1712641841603,-500.0,0.00020821,2]
[321932358,1712641841612,-500.0,0.00020821,2]
[321932360,1712641841621,-502.67834581,0.00020821,2]
[321932362,1712641841630,-500.0,0.00020821,2]
[321932364,1712641841639,-692.39,0.00020821,2]
[321932366,1712641841648,-500.0,0.00020821,2]
[321932368,1712641841657,-503.33235994,0.00020821,2]
[321932370,1712641841666,-509.9,0.00020821,2]
[321932372,1712641841675,-500.0,0.00020821,2]
[321932374,1712641841684,-502.81632007,0.00020821,2]
[321932376,1712641841694,-500.0,0.00020821,2]
[321932378,1712641841703,-503.40016986,0.00020821,2]
[321932380,1712641841712,-901.58,0.00020821,2]
[321932382,1712641841721,-500.0,0.00020821,2]
[321932384,1712641841732,-501.60180161,0.00020821,2]
[321932386,1712641841741,-500.0,0.00020821,2]
[321932388,1712641841750,-500.0,0.00020821,2]
[321932391,1712641841760,-1078.07,0.00020821,2]
[321932393,1712641841768,-554.07073961,0.00020821,2]
[321932395,1712641841778,-701.51,0.00020821,2]
[321932397,1712641841787,-383.08374367,0.00020821,2]
[321932399,1712641841796,-496.51677854,0.00020821,2]
[321932401,1712641841805,-500.0,0.00020821,2]
[321932403,1712641841815,-500.0,0.00020821,2]
[321932404,1712641841824,-500.0,0.00020821,2]
[321932407,1712641841835,-500.0,0.00020821,2]
[321932409,1712641841845,-500.0,0.00020821,2]
[321932411,1712641841854,-2075.79,0.00020821,2]
[321932413,1712641841862,-500.0,0.00020821,2]
[321932414,1712641841872,-500.0,0.00020821,2]
[321932417,1712641841881,-502.76129567,0.00020821,2]
[321932418,1712641841894,-500.0,0.00020821,2]
[321932420,1712641841903,-519.12353443,0.00020821,2]
[321932423,1712641841913,-508.14919248,0.00020821,2]
[321932425,1712641841922,-961.78,0.00020821,2]
[321932426,1712641841931,-500.0,0.00020821,2]
[321932428,1712641841940,-500.0,0.00020821,2]
[321932431,1712641841950,-500.0,0.00020821,2]
[321932432,1712641841959,-500.0,0.00020821,2]
[321932434,1712641841968,-2900.57,0.00020821,2]
[321932436,1712641841977,-1980.99,0.00020821,2]
[321932439,1712641841986,-686.23,0.00020821,2]
[321932441,1712641841995,-500.0,0.00020821,2]
[321932442,1712641842005,-501.87611416,0.00020821,2]
[321932445,1712641842014,-1733.36,0.00020821,2]
[321932447,1712641842023,-1016.84,0.00020821,2]
[321932448,1712641842033,-175.90862256,0.00020821,2]
[321932450,1712641842042,-765.72,0.00020821,2]
[321932452,1712641842052,-503.02377822,0.00020821,2]
[321932454,1712641842061,-500.0,0.00020821,2]
[321932456,1712641842070,-663.75,0.00020821,2]
[321932458,1712641842079,-502.77388539,0.00020821,2]
[321932460,1712641842089,-500.0,0.00020821,2]
[321932463,1712641842099,-359.75050188,0.00020821,2]
[321932465,1712641842107,-1563.13,0.00020821,2]
[321932467,1712641842116,-1622.49,0.00020821,2]
[321932469,1712641842125,-1292.26,0.00020821,2]
[321932471,1712641842136,-749.86,0.00020821,2]
[321932473,1712641842145,-500.0,0.00020821,2]
[321932475,1712641842154,-500.0,0.00020821,2]
[321932476,1712641842163,-500.0,0.00020821,2]
[321932478,1712641842173,-500.0,0.00020821,2]
[321932481,1712641842182,-500.0,0.00020821,2]
[321932482,1712641842191,-522.56049316,0.00020821,2]
[321932484,1712641842200,-639.76,0.00020821,2]
[321932486,1712641842210,-500.0,0.00020821,2]
[321932488,1712641842219,-500.0,0.00020821,2]
[321932490,1712641842229,-1506.04,0.00020821,2]
[321932492,1712641842239,-500.0,0.00020821,2]
[321932494,1712641842249,-500.0,0.00020821,2]
[321932497,1712641842259,-500.0,0.00020821,2]
[321932499,1712641842270,-500.0,0.00020821,2]
[321932500,1712641842280,-500.0,0.00020821,2]
[321932502,1712641842290,-2309.39,0.00020821,2]
[321932504,1712641842299,-903.42,0.00020821,2]
[321932506,1712641842308,-1745.45,0.00020821,2]
[321932508,1712641842318,-500.0,0.00020821,2]
[321932510,1712641842327,-500.0,0.00020821,2]
[321932512,1712641842336,-500.0,0.00020821,2]
[321932515,1712641842347,-1970.46,0.00020821,2]
[321932517,1712641842357,-663.26,0.00020821,2]
[321932519,1712641842366,-500.0,0.00020821,2]
[321932521,1712641842375,-739.35,0.00020821,2]
[321932523,1712641842384,-543.88093253,0.00020821,2]
[321932525,1712641842393,-500.0,0.00020821,2]
[321932527,1712641842402,-500.0,0.00020821,2]
[321932528,1712641842411,-582.21,0.00020821,2]
[321932530,1712641842420,-621.68,0.00020821,2]
[321932532,1712641842428,-500.0,0.00020821,2]
[321932534,1712641842437,-500.0,0.00020821,2]
[321932536,1712641842446,-500.0,0.00020821,2]
[321932538,1712641842455,-1196.48,0.00020821,2]
[321932540,1712641842465,-1075.04,0.00020821,2]
[321932542,1712641842475,-1051.72,0.00020821,2]
[321932543,1712641842490,-1769.75,0.00020821,2]
[321932545,1712641842499,-500.0,0.00020821,2]
[321932547,1712641842509,-500.0,0.00020821,2]
[321932548,1712641842518,-500.0,0.00020821,2]
[321932550,1712641842528,-500.0,0.00020821,2]
[321932552,1712641842537,-1518.37,0.00020821,2]
[321932554,1712641842548,-500.0,0.00020821,2]
[321932556,1712641842559,-500.0,0.00020821,2]
[321932558,1712641842569,-500.0,0.00020821,2]
[321932560,1712641842578,-891.83,0.00020821,2]
[321932563,1712641842587,-506.25402525,0.00020821,2]
[321932565,1712641842598,-500.0,0.00020821,2]
[321932567,1712641842608,-500.0,0.00020821,2]
[321932569,1712641842618,-1278.22,0.00020821,2]
[321932571,1712641842628,-500.0,0.00020821,2]
[321932573,1712641842637,-500.0,0.00020821,2]
[321932575,1712641842647,-999.33,0.00020821,2]
[321932577,1712641842656,-525.85972517,0.00020821,2]
[321932579,1712641842666,-505.90858159,0.00020821,2]
[321932581,1712641842676,-1994.41,0.00020821,2]
[321932583,1712641842685,-752.8,0.00020821,2]
[321932584,1712641842695,-520.97227162,0.00020821,2]
[321932586,1712641842704,-619.09,0.00020821,2]
[321932588,1712641842713,-517.96814965,0.00020821,2]
[321932590,1712641842722,-500.0,0.00020821,2]
[321932592,1712641842731,-500.0,0.00020821,2]
[321932594,1712641842741,-500.0,0.00020821,2]
[321932596,1712641842750,-1460.15,0.00020821,2]
[321932598,1712641842759,-1945.75,0.00020821,2]
[321932600,1712641842769,-500.0,0.00020821,2]
[321932602,1712641842778,-500.0,0.00020821,2]
[321932604,1712641842787,-733.87,0.00020821,2]
[321932606,1712641842796,-500.0,0.00020821,2]
[321932608,1712641842806,-500.0,0.00020821,2]
[321932610,1712641842815,-500.0,0.00020821,2]
[321932612,1712641842824,-503.54828316,0.00020821,2]
[321932614,1712641842833,-500.0,0.00020821,2]
[321932616,1712641842844,-2678.48,0.00020821,2]
[321932618,1712641842853,-500.0,0.00020821,2]
[321932620,1712641842862,-1252.14,0.00020821,2]
[321932622,1712641842871,-950.49,0.00020821,2]
[321932623,1712641842881,-500.0,0.00020821,2]
[321932624,1712641842890,-629.3,0.00020821,2]
[321932625,1712641842900,-500.0,0.00020821,2]
[321932626,1712641842909,-1679.59,0.00020821,2]
[321932627,1712641842918,-504.69632713,0.00020821,2]
[321932628,1712641842928,-507.02106742,0.00020821,2]
[321932629,1712641842938,-500.0,0.00020821,2]
[321932630,1712641842947,-500.0,0.00020821,2]
[321932631,1712641842957,-1246.76,0.00020821,2]
[321932632,1712641842966,-1246.76,0.00020821,2]
[321932633,1712641842976,-1246.76,0.00020821,2]
[321932634,1712641842985,-1246.76,0.00020821,2]
[321932635,1712641842996,-500.0,0.00020821,2]
[321932636,1712641843005,-1246.76,0.00020821,2]
[321932637,1712641843015,-1246.76,0.00020821,2]
[321932639,1712641843025,-500.0,0.00020821,2]
[321932641,1712641843034,-500.0,0.00020821,2]
[321932643,1712641843043,-500.0,0.00020821,2]
[321932645,1712641843053,-317.25063976,0.00020821,2]
[321932647,1712641843062,-234.24371694,0.00020821,2]
[321932649,1712641843072,-1969.93,0.00020821,2]
[321932651,1712641843081,-1001.93,0.00020821,2]
[321932653,1712641843091,-500.0,0.00020821,2]
[321932655,1712641843100,-500.0,0.00020821,2]
[321932657,1712641843109,-500.0,0.00020821,2]
[321932659,1712641843119,-500.0,0.00020821,2]
[321932661,1712641843128,-520.7327559,0.00020821,2]
[321932663,1712641843138,-500.0,0.00020821,2]
[321932665,1712641843148,-500.0,0.00020821,2]
[321932667,1712641843158,-1538.37,0.00020821,2]
[321932669,1712641843167,-512.84590398,0.00020821,2]
[321932671,1712641843176,-500.0,0.00020821,2]
[321932673,1712641843186,-2005.38,0.00020821,2]
[321932675,1712641843195,-500.0,0.00020821,2]
[321932677,1712641843205,-500.0,0.00020821,2]
[321932679,1712641843214,-500.0,0.00020821,2]
[321932681,1712641843223,-500.0,0.00020821,2]
[321932683,1712641843233,-500.0,0.00020821,2]
[321932685,1712641843243,-514.50870847,0.00020821,2]
[321932687,1712641843252,-500.0,0.00020821,2]
[321932689,1712641843262,-500.0,0.00020821,2]
[321932691,1712641843271,-500.0,0.00020821,2]
[321932693,1712641843281,-500.0,0.00020821,2]
[321932695,1712641843294,-2153.04,0.00020821,2]
[321932697,1712641843303,-500.0,0.00020821,2]
[321932699,1712641843313,-993.4,0.00020821,2]
[321932701,1712641843322,-500.0,0.00020821,2]
[321932703,1712641843332,-1611.24,0.00020821,2]
[321932705,1712641843342,-2439.02,0.00020821,2]
[321932707,1712641843352,-500.0,0.00020821,2]
[321932709,1712641843361,-500.0,0.00020821,2]
[321932711,1712641843370,-500.0,0.00020821,2]
[321932712,1712641843379,-515.19210534,0.00020821,2]
[321932713,1712641843388,-500.0,0.00020821,2]
[321932714,1712641843397,-500.0,0.00020821,2]
[321932715,1712641843406,-500.0,0.00020821,2]
[321932716,1712641843414,-2160.77,0.00020821,2]
[321932717,1712641843423,-1489.67,0.00020821,2]
[321932719,1712641843433,-2876.12,0.00020821,2]
[321932720,1712641843443,-500.0,0.00020821,2]
[321932721,1712641843453,-806.19,0.00020821,2]
[321932722,1712641843462,-500.0,0.00020821,2]
[321932723,1712641843474,-500.0,0.00020821,2]
[321932724,1712641843486,-500.0,0.00020821,2]
[321932725,1712641843495,-500.0,0.00020821,2]
[321932726,1712641843504,-500.0,0.00020821,2]
[321932727,1712641843514,-500.0,0.00020821,2]
[321932728,1712641843524,-500.0,0.00020821,2]